fUSD/lending_fUSD_20260323
["ID","MTS","AMOUNT","RATE_DAILY","PERIOD"]
[408803448,1774277559924,-291.638204,0.00042466,120]
[408803449,1774277559934,-963.888303,0.00042466,60]
[408803450,1774277559943,-239.295296,0.00042466,120]
[408803451,1774277559952,-906.768111,0.00042466,120]
[408803452,1774277559963,-1092.414615,0.00042466,120]
[408803453,1774277559971,-151.0,0.00042466,30]
[408803454,1774277559981,-362.699151,0.00042466,120]
[408803455,1774277559991,-500.0,0.00042466,120]
[408803456,1774277560000,-150.0,0.00042466,120]
[408803457,1774277560010,-150.0,0.00042466,120]
[408803458,1774277560020,-977.93,0.00042467,120]
[408803459,1774277560029,-500.0,0.0004247,120]
[408803460,1774277560039,-500.0,0.0004247,120]
[408803461,1774277560048,-3000.3,0.0004247,120]
[408803462,1774277560058,-263.43913439,0.000425,60]
[408803463,1774277560068,-30000.0,0.000425,30]
[408803464,1774277560078,-1001.12615239,0.000425,2]
[408803465,1774277560088,-153.0,0.000425,120]
[408803466,1774277560097,-1587.70576962,0.000425,120]
[408803467,1774277560107,-500.0,0.000425,120]
[408803468,1774277560117,-1532.54,0.00042531,2]
[408803469,1774277560127,-151.5,0.00042555,2]
[408803470,1774277560136,-250.0,0.00042597,97]
[408803471,1774277560146,-151.5,0.00042605,2]
[408803472,1774277560155,-276.12,0.00042613,120]
[408803473,1774277560166,-2000.0,0.000427,120]
[408803474,1774277560175,-4190.8175299,0.00042703,14]
[408803475,1774277560185,-151.5,0.00042721,2]
[408803476,1774277560194,-425.6,0.00042737,120]
[408803477,1774277560204,-250.0,0.00042738,99]
[408803478,1774277560213,-1990.0,0.00042739,120]
[408803479,1774277560222,-851.0,0.0004274,120]
[408803480,1774277560232,-450.0,0.0004274,10]
[408803481,1774277560241,-753.71351252,0.0004274,120]
[408803482,1774277560251,-977.93,0.00042741,120]
[408803483,1774277560260,-150.0,0.0004277,60]
[408803484,1774277560270,-3928.21245206,0.000428,90]
[408803485,1774277560279,-405.7,0.000428,120]
[408803486,1774277560289,-512.06,0.000428,120]
[408803487,1774277560298,-397.6974,0.000428,120]
[408803488,1774277560308,-250.0,0.00042862,100]
[408803489,1774277560318,-983.51,0.0004287,7]
[408803490,1774277560327,-151.5,0.00042876,2]
[408803491,1774277560339,-12432.1275312,0.0004288,60]
[408803492,1774277560349,-34995.89,0.00042887,30]
[408803493,1774277560359,-944.37080229,0.0004289,90]
[408803494,1774277560368,-10000.0,0.000429,120]
[408803495,1774277560378,-1365.33782489,0.000429,120]
[408803496,1774277560387,-920.39,0.00042905,90]
[408803497,1774277560396,-201.0,0.0004295,30]
[408803498,1774277560406,-151.5,0.00042956,2]
[408803499,1774277560415,-150.0,0.00042958,120]
[408803500,1774277560425,-250.0,0.0004297,102]
[408803501,1774277560434,-156.8153258,0.00042984,2]
[408803502,1774277560444,-387.41128975,0.0004299,60]
[408803503,1774277560454,-500.0,0.00043,45]
[408803504,1774277560463,-2800.0,0.00043,120]
[408803505,1774277560472,-500.0,0.00043,45]
[408803506,1774277560652,-214.0,0.00043,7]
[408803507,1774277560662,-764.57635444,0.00043,120]
[408803508,1774277560671,-418.2730999,0.00043,120]
[408803509,1774277560681,-246.0426085,0.00043,7]
[408803510,1774277560690,-246.0426085,0.00043,7]
[408803511,1774277560700,-246.0426085,0.00043,7]
[408803512,1774277560709,-246.0426085,0.00043,7]
[408803513,1774277560718,-500.0,0.00043,45]
[408803514,1774277560727,-300.0,0.00043,30]
[408803515,1774277560737,-300.0,0.00043,60]
[408803516,1774277560746,-30000.0,0.00043,30]
[408803517,1774277560756,-30000.0,0.00043,30]
[408803518,1774277560765,-1000.0,0.00043,30]
[408803519,1774277560775,-500.0,0.00043,120]
[408803520,1774277560784,-150.0,0.00043,30]
[408803521,1774277560793,-246.0426085,0.00043,7]
[408803522,1774277560802,-246.0426085,0.00043,7]
[408803523,1774277560812,-200.0,0.00043,120]
[408803524,1774277560821,-14507.81733273,0.00043,7]
[408803525,1774277560830,-30000.0,0.00043,60]
[408803526,1774277560840,-30000.0,0.00043,60]
[408803527,1774277560849,-2782.29667406,0.00043,120]
[408803528,1774277560861,-200.0,0.00043,120]
[408803529,1774277560870,-3069.0,0.00043,120]
[408803530,1774277560880,-522.0,0.00043,120]
[408803531,1774277560889,-500.0,0.00043,120]
[408803532,1774277560899,-27180.0,0.00043,120]
[408803533,1774277560908,-605.2,0.00043,120]
[408803534,1774277560918,-628.57,0.00043,120]
[408803535,1774277560928,-35454.07763378,0.00043,30]
[408803536,1774277560937,-663.174,0.00043,120]
[408803537,1774277560947,-500.0,0.00043,120]
[408803538,1774277560956,-425.6,0.00043011,120]
[408803539,1774277560966,-1990.0,0.00043013,120]
[408803540,1774277560975,-851.0,0.00043014,120]
[408803541,1774277560985,-977.93,0.00043015,120]
[408803542,1774277560995,-261.140409,0.00043047,120]
[408803543,1774277561005,-250.0,0.00043064,103]
[408803544,1774277561015,-1343.91393835,0.00043068,30]
[408803545,1774277561024,-1343.91393835,0.00043068,30]
[408803546,1774277561034,-200.01,0.00043068,120]
[408803547,1774277561043,-192.52,0.00043068,120]
[408803548,1774277561052,-3142.0,0.00043069,30]
[408803549,1774277561061,-350.0,0.00043069,30]
[408803550,1774277561070,-229.0,0.00043069,30]
[408803551,1774277561079,-5439.73542216,0.000431,120]
[408803552,1774277561088,-169.09253885,0.000431,120]
[408803553,1774277561098,-475.55263481,0.000431,120]
[408803554,1774277561109,-163.03276748,0.000431,120]
[408803555,1774277561118,-300.40667556,0.000431,120]
[408803556,1774277561128,-207.93290509,0.000431,120]
[408803557,1774277561137,-207.81767363,0.000431,120]
[408803558,1774277561146,-205.93696604,0.000431,120]
[408803559,1774277561155,-218.12851379,0.000431,120]
[408803560,1774277561164,-186.96519499,0.000431,120]
[408803561,1774277561174,-151.0,0.000431,120]
[408803562,1774277561183,-177.56907177,0.000431,120]
[408803563,1774277561192,-2958.8228,0.0004314,2]
[408803564,1774277561201,-502.0,0.00043143,27]
[408803565,1774277561211,-250.0,0.00043147,105]
[408803566,1774277561220,-151.5,0.00043214,2]
[408803567,1774277561229,-250.0,0.00043219,106]
[408803568,1774277561238,-151.5,0.00043249,2]
[408803569,1774277561247,-156.8153258,0.00043258,2]
[408803570,1774277561256,-250.0,0.00043283,107]
[408803571,1774277561266,-425.6,0.00043285,120]
[408803572,1774277561275,-500.0,0.00043287,120]
[408803573,1774277561284,-500.0,0.00043287,120]
[408803574,1774277561293,-500.0,0.00043287,120]
[408803575,1774277561302,-500.0,0.00043287,120]
[408803576,1774277561311,-500.0,0.00043287,120]
[408803577,1774277561320,-500.0,0.00043287,120]
[408803578,1774277561329,-500.0,0.00043287,120]
[408803579,1774277561338,-500.0,0.00043287,120]
[408803580,1774277561347,-500.0,0.00043287,120]
[408803581,1774277561358,-500.0,0.00043287,120]
[408803582,1774277561367,-500.0,0.00043287,120]
[408803583,1774277561376,-500.0,0.00043287,120]
[408803584,1774277561385,-500.0,0.00043287,120]
[408803585,1774277561394,-500.0,0.00043287,120]
[408803586,1774277561403,-500.0,0.00043287,120]
[408803587,1774277561412,-500.0,0.00043287,120]
[408803588,1774277561422,-500.0,0.00043287,120]
[408803589,1774277561431,-500.0,0.00043287,120]
[408803590,1774277561440,-500.0,0.00043287,120]
[408803591,1774277561449,-500.0,0.00043287,120]
[408803592,1774277561458,-500.0,0.00043287,120]
[408803593,1774277561467,-500.0,0.00043287,120]
[408803594,1774277561476,-500.0,0.00043287,120]
[408803595,1774277561485,-500.0,0.00043287,120]
[408803596,1774277561494,-500.0,0.00043287,120]
[408803597,1774277561504,-500.0,0.00043287,120]
[408803598,1774277561513,-500.0,0.00043287,120]
[408803599,1774277561522,-500.0,0.00043287,120]
[408803600,1774277561531,-500.0,0.00043287,120]
[408803601,1774277561542,-500.0,0.00043287,120]
[408803602,1774277561552,-500.0,0.00043287,120]
[408803603,1774277561561,-500.0,0.00043287,120]
[408803604,1774277561570,-500.0,0.00043287,120]
[408803605,1774277561580,-500.0,0.00043287,120]
[408803606,1774277561588,-500.0,0.00043287,120]
[408803607,1774277561598,-500.0,0.00043287,120]
[408803608,1774277561608,-500.0,0.00043287,120]
[408803609,1774277561619,-500.0,0.00043287,120]
[408803610,1774277561628,-500.0,0.00043287,120]
[408803611,1774277561637,-500.0,0.00043287,120]
[408803612,1774277561646,-500.0,0.00043287,120]
[408803613,1774277561655,-500.0,0.00043287,120]
[408803614,1774277561663,-500.0,0.00043287,120]
[408803615,1774277561673,-500.0,0.00043287,120]
[408803616,1774277561682,-500.0,0.00043287,120]
[408803617,1774277561690,-500.0,0.00043287,120]
[408803618,1774277561699,-500.0,0.00043287,120]
[408803619,1774277561709,-500.0,0.00043287,120]
[408803620,1774277561718,-500.0,0.00043287,120]
[408803621,1774277561728,-500.0,0.00043287,120]
[408803622,1774277561737,-500.0,0.00043287,120]
[408803623,1774277561746,-500.0,0.00043287,120]
[408803624,1774277561755,-353.92980701,0.00043287,120]
[408803625,1774277561764,-1990.0,0.00043287,120]
[408803626,1774277561773,-851.0,0.00043288,120]
[408803627,1774277561783,-550.0,0.00043288,10]
[408803628,1774277561792,-977.93,0.00043289,120]
[408803629,1774277561802,-2958.8228,0.00043292,2]
[408803630,1774277561818,-153.0,0.000433,120]
[408803631,1774277561831,-151.0,0.00043315,60]
[408803632,1774277561841,-250.0,0.00043338,109]
[408803633,1774277561850,-1532.54,0.0004334,2]
[408803634,1774277561859,-552.23,0.00043348,30]
[408803635,1774277561869,-250.0,0.00043387,110]
[408803636,1774277561879,-250.0,0.00043429,111]
[408803637,1774277561888,-2958.8228,0.00043443,2]
[408803638,1774277561898,-250.0,0.00043467,112]
[408803639,1774277561907,-250.0,0.00043499,113]
[408803640,1774277561916,-2000.0,0.000435,60]
[408803641,1774277561926,-1030.72133945,0.000435,60]
[408803642,1774277561935,-500.0,0.000435,45]
[408803643,1774277561944,-500.0,0.000435,45]
[408803644,1774277561953,-312.13209438,0.000435,120]
[408803645,1774277561963,-500.0,0.000435,45]
[408803646,1774277561973,-500.0,0.000435,120]
[408803647,1774277561983,-500.0,0.000435,120]
[408803648,1774277561992,-500.0,0.000435,120]
[408803649,1774277562001,-500.0,0.000435,120]
[408803650,1774277562011,-500.0,0.000435,120]
[408803651,1774277562021,-500.0,0.000435,120]
[408803652,1774277562030,-500.0,0.000435,120]
[408803653,1774277562040,-500.0,0.000435,120]
[408803654,1774277562050,-500.0,0.000435,120]
[408803655,1774277562059,-500.0,0.000435,120]
[408803656,1774277562069,-500.0,0.000435,120]
[408803657,1774277562078,-500.0,0.000435,120]
[408803658,1774277562088,-500.0,0.000435,120]
[408803659,1774277562097,-500.0,0.000435,120]
[408803660,1774277562108,-500.0,0.000435,120]
[408803661,1774277562117,-500.0,0.000435,120]
[408803662,1774277562127,-500.0,0.000435,120]
[408803663,1774277562136,-500.0,0.000435,120]
[408803664,1774277562146,-500.0,0.000435,120]
[408803665,1774277562156,-610.74963896,0.000435,120]
[408803666,1774277562166,-500.0,0.000435,120]
[408803667,1774277562175,-380.0,0.000435,120]
[408803668,1774277562185,-150.0,0.000435,120]
[408803669,1774277562195,-250.0,0.00043528,114]
[408803670,1774277562204,-156.8153258,0.00043532,2]
[408803671,1774277562214,-250.0,0.00043553,114]
[408803672,1774277562224,-240.0,0.00043553,2]
[408803673,1774277562234,-425.6,0.00043559,120]
[408803674,1774277562243,-1990.0,0.00043561,120]
[408803675,1774277562253,-851.0,0.00043562,120]
[408803676,1774277562264,-1444.0,0.00043562,120]
[408803677,1774277562274,-977.93,0.00043563,120]
[408803678,1774277562284,-150.0,0.00043567,120]
[408803679,1774277562294,-250.0,0.00043574,115]
[408803680,1774277562304,-250.0,0.00043593,116]
[408803681,1774277562313,-2958.8228,0.00043594,2]
[408803682,1774277562323,-295.50629688,0.00043594,2]
[408803683,1774277562332,-250.0,0.0004361,116]
[408803684,1774277562343,-250.0,0.00043625,117]
[408803685,1774277562352,-250.0,0.00043638,117]
[408803686,1774277562364,-250.0,0.00043649,117]
[408803687,1774277562374,-17894.0,0.0004365,60]
[408803688,1774277562383,-250.0,0.00043659,118]
[408803689,1774277562393,-250.0,0.00043667,118]
[408803690,1774277562403,-250.0,0.00043675,118]
[408803691,1774277562412,-250.0,0.00043681,118]
[408803692,1774277562422,-250.0,0.00043687,119]
[408803693,1774277562432,-382.46634314,0.0004369,90]
[408803694,1774277562441,-250.0,0.00043692,119]
[408803695,1774277562451,-250.0,0.00043696,119]
[408803696,1774277562460,-996.80714876,0.000437,120]
[408803697,1774277562470,-1019.61345452,0.000437,120]
[408803698,1774277562479,-250.0,0.000437,119]
[408803699,1774277562489,-250.0,0.00043704,119]
[408803700,1774277562499,-250.0,0.00043707,119]
[408803701,1774277562509,-250.0,0.00043709,119]
[408803702,1774277562518,-13864.94424037,0.0004371,90]
[408803703,1774277562528,-250.0,0.00043711,119]
[408803704,1774277562538,-250.0,0.00043713,120]
[408803705,1774277562551,-250.0,0.00043715,120]
[408803706,1774277562560,-250.0,0.00043717,120]
[408803707,1774277562570,-250.0,0.00043718,120]
[408803708,1774277562580,-250.0,0.00043719,120]
[408803709,1774277562590,-250.0,0.0004372,120]
[408803710,1774277562599,-250.0,0.00043721,120]
[408803711,1774277562609,-250.0,0.00043722,120]
[408803712,1774277562620,-250.0,0.00043723,120]
[408803713,1774277562630,-250.0,0.00043723,120]
[408803714,1774277562640,-250.0,0.00043724,120]
[408803715,1774277562649,-250.0,0.00043724,120]
[408803716,1774277562659,-250.0,0.00043724,120]
[408803717,1774277562668,-250.0,0.00043725,120]
[408803718,1774277562678,-250.0,0.00043725,120]
[408803719,1774277562687,-250.0,0.00043725,120]
[408803720,1774277562697,-250.0,0.00043726,120]
[408803721,1774277562706,-250.0,0.00043726,120]
[408803722,1774277562716,-250.0,0.00043726,120]
[408803723,1774277562725,-250.0,0.00043726,120]
[408803724,1774277562734,-250.0,0.00043726,120]
[408803725,1774277562743,-250.0,0.00043726,120]
[408803726,1774277562752,-250.0,0.00043726,120]
[408803727,1774277562762,-250.0,0.00043726,120]
[408803728,1774277562772,-250.0,0.00043726,120]
[408803729,1774277562782,-250.0,0.00043726,120]
[408803730,1774277562802,-250.0,0.00043726,120]
[408803731,1774277562812,-250.0,0.00043726,120]
[408803732,1774277562822,-172.59,0.00043726,120]
[408803733,1774277562831,-860.64,0.00043727,30]
[408803734,1774277562841,-2958.8228,0.00043746,2]
[408803735,1774277562851,-4007.85719614,0.00043747,120]
[408803736,1774277562861,-6000.0,0.00043748,45]
[408803737,1774277562870,-240.2370146,0.00043774,120]
[408803738,1774277562880,-230.3,0.00043775,30]
[408803739,1774277562890,-230.3,0.00043775,30]
[408803740,1774277562899,-343.12,0.00043775,30]
[408803741,1774277562910,-273.62570819,0.00043778,120]
[408803742,1774277562919,-211.15036863,0.00043779,120]
[408803743,1774277562929,-150.0,0.0004378,60]
[408803744,1774277562938,-150.0,0.0004378,60]
[408803745,1774277562948,-160.0,0.0004378,60]
[408803746,1774277562958,-150.0,0.0004378,60]
[408803747,1774277562968,-150.0,0.0004378,60]
[408803748,1774277562977,-150.0,0.0004378,60]
[408803749,1774277562986,-150.0,0.0004378,60]
[408803750,1774277562996,-150.0,0.0004378,60]
[408803751,1774277563005,-150.0,0.0004378,60]
[408803752,1774277563015,-150.0,0.0004378,60]
[408803753,1774277563026,-160.0,0.0004378,60]
[408803754,1774277563035,-500.0,0.0004378,120]
[408803755,1774277563044,-3113.0,0.00043787,30]
[408803756,1774277563054,-350.0,0.00043787,30]
[408803757,1774277563064,-218.0,0.00043787,30]
[408803758,1774277563073,-1093.5,0.00043799,30]
[408803759,1774277563083,-4529.65667951,0.000438,120]
[408803760,1774277563092,-510.42054406,0.000438,30]
[408803761,1774277563102,-345.0,0.000438,30]
[408803762,1774277563111,-5893.57328652,0.000438,120]
[408803763,1774277563120,-1135.8,0.000438,120]
[408803764,1774277563129,-156.8153258,0.00043806,2]
[408803765,1774277563139,-484.02280416,0.00043808,120]
[408803766,1774277563148,-322.68186944,0.00043808,120]
[408803767,1774277563158,-1561.84615385,0.00043808,120]
[408803768,1774277563167,-934.61538462,0.00043808,120]
[408803769,1774277563177,-1714.03817035,0.00043808,120]
[408803770,1774277563186,-814.97032461,0.00043808,120]
[408803771,1774277563195,-250.76009988,0.00043808,120]
[408803772,1774277563205,-292.55344986,0.00043808,120]
[408803773,1774277563214,-583.61734499,0.00043808,120]
[408803774,1774277563224,-389.07822999,0.00043808,120]
[408803775,1774277563233,-291.80867249,0.00043808,120]
[408803776,1774277563242,-300.0,0.00043808,2]
[408803777,1774277563251,-300.0,0.00043808,2]
[408803778,1774277563260,-300.0,0.00043808,2]
[408803779,1774277563269,-300.0,0.00043808,2]
[408803780,1774277563279,-300.0,0.00043808,2]
[408803781,1774277563288,-300.0,0.00043808,2]
[408803782,1774277563297,-300.0,0.00043808,2]
[408803783,1774277563306,-300.0,0.00043808,2]
[408803784,1774277563315,-300.0,0.00043808,2]
[408803785,1774277563325,-300.0,0.00043808,2]
[408803786,1774277563334,-300.0,0.00043808,2]
[408803787,1774277563344,-300.0,0.00043808,2]
[408803788,1774277563354,-300.0,0.00043808,2]
[408803789,1774277563363,-300.0,0.00043808,2]
[408803790,1774277563371,-300.0,0.00043808,2]
[408803791,1774277563382,-151.5,0.00043823,2]
[408803792,1774277563391,-425.6,0.00043833,120]
[408803793,1774277563402,-500.0,0.00043835,120]
[408803794,1774277563411,-500.0,0.00043835,120]
[408803795,1774277563420,-500.0,0.00043835,120]
[408803796,1774277563429,-500.0,0.00043835,120]
[408803797,1774277563439,-500.0,0.00043835,120]
[408803798,1774277563448,-500.0,0.00043835,120]
[408803799,1774277563457,-500.0,0.00043835,120]
[408803800,1774277563466,-150.82817163,0.00043835,120]
[408803801,1774277563475,-1990.0,0.00043835,120]
[408803802,1774277563484,-851.0,0.00043836,120]
[408803803,1774277563494,-650.0,0.00043836,10]
[408803804,1774277563504,-1082.0,0.00043836,30]
[408803805,1774277563513,-1000.0,0.00043836,120]
[408803806,1774277563528,-1000.0,0.00043836,120]
[408803807,1774277563538,-1000.0,0.00043836,120]
[408803808,1774277563552,-1000.0,0.00043836,120]
[408803809,1774277563561,-1000.0,0.00043836,120]
[408803810,1774277563570,-1000.0,0.00043836,120]
[408803811,1774277563579,-1000.0,0.00043836,120]
[408803812,1774277563590,-1000.0,0.00043836,120]
[408803813,1774277563599,-1000.0,0.00043836,120]
[408803814,1774277563608,-1000.0,0.00043836,120]
[408803815,1774277563618,-1000.0,0.00043836,120]
[408803816,1774277563628,-1000.0,0.00043836,120]
[408803817,1774277563637,-1000.0,0.00043836,120]
[408803818,1774277563647,-1000.0,0.00043836,120]
[408803819,1774277563656,-1000.0,0.00043836,120]
[408803820,1774277563666,-1000.0,0.00043836,120]
[408803821,1774277563675,-1000.0,0.00043836,120]
[408803822,1774277563685,-1000.0,0.00043836,120]
[408803823,1774277563694,-1000.0,0.00043836,120]
[408803824,1774277563703,-1000.0,0.00043836,120]
[408803825,1774277563715,-1000.0,0.00043836,120]
[408803826,1774277563724,-1000.0,0.00043836,120]
[408803827,1774277563734,-1000.0,0.00043836,120]
[408803828,1774277563744,-1000.0,0.00043836,120]
[408803829,1774277563752,-1000.0,0.00043836,120]
[408803830,1774277563762,-1000.0,0.00043836,120]
[408803831,1774277563771,-1000.0,0.00043836,120]
[408803832,1774277563781,-1980.0,0.00043836,120]
[408803833,1774277563790,-500.0,0.00043836,120]
[408803834,1774277563800,-1000.0,0.00043836,18]
[408803835,1774277563810,-500.0,0.00043836,120]
[408803836,1774277563819,-500.0,0.00043836,120]
[408803837,1774277563828,-500.0,0.00043836,120]
[408803838,1774277563838,-500.0,0.00043836,120]
[408803839,1774277563847,-500.0,0.00043836,120]
[408803840,1774277563856,-500.0,0.00043836,120]
[408803841,1774277563865,-500.0,0.00043836,120]
[408803842,1774277563875,-500.0,0.00043836,120]
[408803843,1774277563884,-500.0,0.00043836,120]
[408803844,1774277563893,-500.0,0.00043836,120]
[408803845,1774277563903,-500.0,0.00043836,120]
[408803846,1774277563912,-500.0,0.00043836,120]
[408803847,1774277563921,-500.0,0.00043836,120]
[408803848,1774277563930,-500.0,0.00043836,120]
[408803849,1774277563939,-500.0,0.00043836,120]
[408803850,1774277563949,-195.47234528,0.00043836,120]
[408803851,1774277563958,-977.93,0.00043836,120]
[408803852,1774277563967,-1044.0,0.00043873,2]
[408803853,1774277563976,-2958.8228,0.00043897,2]
[408803854,1774277563985,-361.33685343,0.000439,120]
[408803855,1774277563994,-10000.0,0.000439,120]
[408803856,1774277564003,-6168.56518165,0.00043947,2]
[408803857,1774277564014,-151.5,0.00043976,2]
[408803858,1774277564024,-1115.31192202,0.00043987,120]
[408803859,1774277564033,-2666.41561043,0.00043989,15]
[408803860,1774277564043,-502.78095641,0.0004399,120]
[408803861,1774277564052,-500.0,0.00043999,120]
[408803862,1774277564061,-500.0,0.00043999,120]
[408803863,1774277564070,-500.0,0.00043999,120]
[408803864,1774277564079,-500.0,0.00043999,120]
[408803865,1774277564088,-500.0,0.00043999,120]
[408803866,1774277564097,-500.0,0.00043999,120]
[408803867,1774277564106,-500.0,0.00043999,120]
[408803868,1774277564115,-155.58,0.00044,5]
[408803869,1774277564125,-317.6901532,0.00044,30]
[408803870,1774277564134,-10063.0698684,0.00044,20]
[408803871,1774277564143,-10000.0,0.00044,120]
[408803872,1774277564153,-70943.98686584,0.00044,2]
[408803873,1774277564162,-163.36569158,0.00044,120]
[408803874,1774277564171,-1746.40344696,0.00044,120]
[408803875,1774277564181,-1686.6249629,0.00044,120]
[408803876,1774277564190,-500.0,0.00044,45]
[408803877,1774277564199,-500.0,0.00044,45]
[408803878,1774277564208,-500.0,0.00044,45]
[408803879,1774277564217,-500.0,0.00044,45]
[408803880,1774277564227,-500.0,0.00044,45]
[408803881,1774277564236,-500.0,0.00044,45]
[408803882,1774277564246,-500.0,0.00044,45]
[408803883,1774277564254,-500.0,0.00044,45]
[408803884,1774277564263,-500.0,0.00044,45]
[408803885,1774277564273,-500.0,0.00044,45]
[408803886,1774277564282,-500.0,0.00044,45]
[408803887,1774277564291,-500.0,0.00044,45]
[408803888,1774277564300,-500.0,0.00044,45]
[408803889,1774277564310,-500.0,0.00044,45]
[408803890,1774277564319,-500.0,0.00044,45]
[408803891,1774277564328,-500.0,0.00044,45]
[408803892,1774277564338,-500.0,0.00044,45]
[408803893,1774277564348,-500.0,0.00044,45]
[408803894,1774277564357,-500.0,0.00044,45]
[408803895,1774277564366,-500.0,0.00044,45]
[408803896,1774277564375,-1000.0,0.00044,120]
[408803897,1774277564385,-500.0,0.00044,45]
[408803898,1774277564394,-500.0,0.00044,45]
[408803899,1774277564403,-500.0,0.00044,45]
[408803900,1774277564412,-500.0,0.00044,45]
[408803901,1774277564422,-500.0,0.00044,45]
[408803902,1774277564430,-500.0,0.00044,45]
[408803903,1774277564440,-500.0,0.00044,45]
[408803904,1774277564449,-500.0,0.00044,45]
[408803905,1774277564458,-2827.56362168,0.00044,120]
[408803906,1774277564467,-500.0,0.00044,45]
[408803907,1774277564476,-429.61192239,0.00044,120]
[408803908,1774277564485,-1374.73765505,0.00044,120]
[408803909,1774277564494,-730.78189833,0.00044,120]
[408803910,1774277564503,-500.0,0.00044,45]
[408803911,1774277564513,-500.0,0.00044,45]
[408803912,1774277564523,-500.0,0.00044,45]
[408803913,1774277564532,-500.0,0.00044,45]
[408803914,1774277564543,-500.0,0.00044,45]
[408803915,1774277564553,-500.0,0.00044,45]
[408803916,1774277564563,-500.0,0.00044,45]
[408803917,1774277564572,-500.0,0.00044,45]
[408803918,1774277564583,-500.0,0.00044,45]
[408803919,1774277564592,-500.0,0.00044,45]
[408803920,1774277564601,-500.0,0.00044,45]
[408803921,1774277564611,-500.0,0.00044,45]
[408803922,1774277564620,-1119.27922556,0.00044,120]
[408803923,1774277564629,-1250.8719175,0.00044,120]
[408803924,1774277564639,-500.0,0.00044,45]
[408803925,1774277564648,-500.0,0.00044,45]
[408803926,1774277564657,-500.0,0.00044,45]
[408803927,1774277564906,-500.0,0.00044,45]
[408803928,1774277564915,-12000.0,0.00044,30]
[408803929,1774277564925,-4503.42966227,0.00044,30]
[408803930,1774277564935,-4656.60766626,0.00044,30]
[408803931,1774277564945,-250.0,0.00044,120]
[408803932,1774277564955,-25290.10532353,0.00044,120]
[408803933,1774277564965,-50000.0,0.00044,70]
[408803934,1774277564975,-500.0,0.00044,120]
[408803935,1774277564984,-565.190211,0.00044,57]
[408803936,1774277564994,-733.93363529,0.00044,2]
[408803937,1774277565004,-380.0,0.00044,120]
[408803938,1774277565014,-150.0,0.00044,120]
[408803939,1774277565024,-502.0,0.00044,28]
[408803940,1774277565033,-210.40762625,0.00044047,120]
[408803941,1774277565043,-2958.8228,0.00044048,2]
[408803942,1774277565053,-312.49,0.00044051,4]
[408803943,1774277565062,-150.39,0.00044051,4]
[408803944,1774277565071,-151.5,0.00044074,2]
[408803945,1774277565081,-156.8153258,0.0004408,2]
[408803946,1774277565090,-153.0,0.000441,120]
[408803947,1774277565100,-151.0,0.000441,120]